[Event "Live Chess"]
[Site "Chess.com"]
[Date "2023.05.20"]
[Round "-"]
[White "GEMdzq"]
[Black "DarthCalzone"]
[Result "1-0"]
[WhiteElo "2201"]
[BlackElo "938"]
[TimeControl "300"]
[EndTime "11:09:30 PDT"]
[Termination "GEMdzq won by checkmate"]

1. e4 {[%clk 0:04:58.9]} 1... c5 {[%clk 0:04:56.6]} 2. d4 {[%clk 0:04:57.8]}
2... cxd4 {[%clk 0:04:54.3]} 3. c3 {[%clk 0:04:57.4]} 3... dxc3 {[%clk
0:04:53.1]} 4. Nxc3 {[%clk 0:04:57.3]} 4... g6 {[%clk 0:04:51.7]} 5. Bc4 {[%clk
0:04:56.6]} 5... Bg7 {[%clk 0:04:49.8]} 6. Nf3 {[%clk 0:04:56]} 6... Nc6 {[%clk
0:04:45.7]} 7. O-O {[%clk 0:04:54.6]} 7... Nf6 {[%clk 0:04:42.3]} 8. e5 {[%clk
0:04:49.9]} 8... Nh5 {[%clk 0:04:39.8]} 9. g4 {[%clk 0:04:41.3]} 9... Nxe5
{[%clk 0:04:29.9]} 10. Nxe5 {[%clk 0:04:38.4]} 10... Bxe5 {[%clk 0:04:25.2]} 11.
gxh5 {[%clk 0:04:37.4]} 11... O-O {[%clk 0:04:09.6]} 12. hxg6 {[%clk 0:04:32.4]}
12... e6 {[%clk 0:03:59.1]} 13. gxh7+ {[%clk 0:04:27.1]} 13... Kxh7 {[%clk
0:03:57.7]} 14. Qh5+ {[%clk 0:04:25.3]} 14... Kg8 {[%clk 0:03:54.3]} 15. Qxe5
{[%clk 0:04:21.2]} 15... f6 {[%clk 0:03:44.4]} 16. Qh5 {[%clk 0:04:20]} 16...
Qe8 {[%clk 0:03:38.5]} 17. Qxe8 {[%clk 0:04:05.1]} 17... Rxe8 {[%clk 0:03:38.4]}
18. Be3 {[%clk 0:03:53.7]} 18... Rd8 {[%clk 0:03:31.1]} 19. Bb3 {[%clk
0:03:43.1]} 19... Kf7 {[%clk 0:03:24.9]} 20. Rad1 {[%clk 0:03:41.4]} 20... d5
{[%clk 0:03:21.5]} 21. Nb5 {[%clk 0:03:40.1]} 21... Bd7 {[%clk 0:03:17.4]} 22.
Nd6+ {[%clk 0:03:37.9]} 22... Ke7 {[%clk 0:03:14.5]} 23. Nxb7 {[%clk 0:03:37]}
23... Rab8 {[%clk 0:03:13.3]} 24. Nxd8 {[%clk 0:03:35.8]} 24... Kxd8 {[%clk
0:03:09.8]} 25. Bxa7 {[%clk 0:03:34.6]} 25... Ra8 {[%clk 0:03:08.7]} 26. Bd4
{[%clk 0:03:33.2]} 26... Rb8 {[%clk 0:03:06.8]} 27. Bxf6+ {[%clk 0:03:32.2]}
27... Ke8 {[%clk 0:03:05.5]} 28. Rfe1 {[%clk 0:03:27.5]} 28... Kf7 {[%clk
0:02:59.2]} 29. Be5 {[%clk 0:03:26.7]} 29... Re8 {[%clk 0:02:54.5]} 30. Re3
{[%clk 0:03:25]} 30... Bb5 {[%clk 0:02:49.9]} 31. Rf3+ {[%clk 0:03:23.5]} 31...
Kg6 {[%clk 0:02:45]} 32. Bc2+ {[%clk 0:03:21.6]} 32... Kg5 {[%clk 0:02:42.7]}
33. Rg3+ {[%clk 0:03:19.7]} 33... Kh4 {[%clk 0:02:38.3]} 34. Bf6+ {[%clk
0:03:16.9]} 34... Kh5 {[%clk 0:02:37.6]} 35. Bg6+ {[%clk 0:03:15.9]} 35... Kh6
{[%clk 0:02:36.6]} 36. Rd4 {[%clk 0:03:10.3]} 36... Rg8 {[%clk 0:02:20.5]} 37.
Rh4# {[%clk 0:03:08]} 1-0

[Event "Live Chess"]
[Site "Chess.com"]
[Date "2023.05.20"]
[Round "-"]
[White "Ninifu"]
[Black "lateforthesky"]
[Result "1/2-1/2"]
[WhiteElo "1988"]
[BlackElo "2066"]
[TimeControl "300"]
[EndTime "11:09:33 PDT"]
[Termination "Game drawn by repetition"]

1. d4 {[%clk 0:04:52.9]} 1... Nf6 {[%clk 0:04:57.2]} 2. c4 {[%clk 0:04:51.2]}
2... g6 {[%clk 0:04:55.2]} 3. Nc3 {[%clk 0:04:49.7]} 3... Bg7 {[%clk 0:04:54.5]}
4. e4 {[%clk 0:04:48.4]} 4... d6 {[%clk 0:04:54]} 5. f4 {[%clk 0:04:47.8]} 5...
O-O {[%clk 0:04:52.3]} 6. Nf3 {[%clk 0:04:47.2]} 6... Na6 {[%clk 0:04:51.6]} 7.
Bd3 {[%clk 0:04:44.1]} 7... e5 {[%clk 0:04:50.7]} 8. fxe5 {[%clk 0:04:42]} 8...
dxe5 {[%clk 0:04:49.3]} 9. d5 {[%clk 0:04:41.3]} 9... Nc5 {[%clk 0:04:47.6]} 10.
Bc2 {[%clk 0:04:40.4]} 10... a5 {[%clk 0:04:46.3]} 11. O-O {[%clk 0:04:31.5]}
11... Ne8 {[%clk 0:04:42.9]} 12. Be3 {[%clk 0:04:23.7]} 12... b6 {[%clk
0:04:40.8]} 13. a3 {[%clk 0:04:04]} 13... Nd6 {[%clk 0:04:36.1]} 14. Qe2 {[%clk
0:04:00.9]} 14... Bg4 {[%clk 0:04:26.6]} 15. b4 {[%clk 0:03:52.3]} 15... axb4
{[%clk 0:03:46.2]} 16. axb4 {[%clk 0:03:50.5]} 16... Rxa1 {[%clk 0:03:44.8]} 17.
Rxa1 {[%clk 0:03:49.7]} 17... Ncxe4 {[%clk 0:03:33.7]} 18. Nxe4 {[%clk
0:03:42.7]} 18... Nxe4 {[%clk 0:03:31.2]} 19. Bxe4 {[%clk 0:03:41.3]} 19... f5
{[%clk 0:03:30.4]} 20. h3 {[%clk 0:03:14.9]} 20... fxe4 {[%clk 0:03:28.3]} 21.
hxg4 {[%clk 0:03:13.6]} 21... exf3 {[%clk 0:03:27.3]} 22. gxf3 {[%clk
0:03:12.9]} 22... e4 {[%clk 0:03:26.4]} 23. Rf1 {[%clk 0:03:03]} 23... exf3
{[%clk 0:02:47.8]} 24. Rxf3 {[%clk 0:03:00.9]} 24... Rxf3 {[%clk 0:02:39.9]} 25.
Qxf3 {[%clk 0:02:59.4]} 25... Qe7 {[%clk 0:02:38.9]} 26. c5 {[%clk 0:02:44.7]}
26... bxc5 {[%clk 0:02:34.7]} 27. bxc5 {[%clk 0:02:43.6]} 27... Qe5 {[%clk
0:02:31.1]} 28. c6 {[%clk 0:02:22.4]} 28... Qd6 {[%clk 0:02:02.5]} 29. Kg2
{[%clk 0:02:14.3]} 29... Be5 {[%clk 0:02:00.7]} 30. Qe4 {[%clk 0:01:44.9]} 30...
Kg7 {[%clk 0:01:53.5]} 31. Kf3 {[%clk 0:01:39]} 31... Qf6+ {[%clk 0:01:45]} 32.
Kg2 {[%clk 0:01:30.5]} 32... Qd6 {[%clk 0:01:40.3]} 33. Kf3 {[%clk 0:01:28.5]}
33... Qf6+ {[%clk 0:01:39.2]} 34. Kg2 {[%clk 0:01:27.3]} 34... Qd6 {[%clk
0:01:32.6]} 1/2-1/2

[Event "Live Chess"]
[Site "Chess.com"]
[Date "2023.05.20"]
[Round "-"]
[White "misha464"]
[Black "AdamOwls"]
[Result "0-1"]
[WhiteElo "759"]
[BlackElo "1944"]
[TimeControl "300"]
[EndTime "11:09:33 PDT"]
[Termination "AdamOwls won by resignation"]

1. e4 {[%clk 0:04:58.6]} 1... c5 {[%clk 0:04:58.2]} 2. Nc3 {[%clk 0:04:55.9]}
2... e6 {[%clk 0:04:45.9]} 3. Nf3 {[%clk 0:04:54.1]} 3... a6 {[%clk 0:04:25.9]}
4. d3 {[%clk 0:04:51]} 4... Nc6 {[%clk 0:04:23.5]} 5. a3 {[%clk 0:04:49]} 5...
b5 {[%clk 0:04:21.7]} 6. Bg5 {[%clk 0:04:47.9]} 6... Be7 {[%clk 0:04:17.9]} 7.
Bxe7 {[%clk 0:04:47]} 7... Ngxe7 {[%clk 0:04:17.3]} 8. Be2 {[%clk 0:04:45]} 8...
O-O {[%clk 0:04:14.7]} 9. O-O {[%clk 0:04:44.1]} 9... Bb7 {[%clk 0:04:12.9]} 10.
b4 {[%clk 0:04:42.7]} 10... Qb6 {[%clk 0:04:02.6]} 11. bxc5 {[%clk 0:04:40.2]}
11... Qxc5 {[%clk 0:04:01.1]} 12. Qd2 {[%clk 0:04:34]} 12... Rfd8 {[%clk
0:03:52]} 13. d4 {[%clk 0:04:33.1]} 13... Qb6 {[%clk 0:03:49]} 14. d5 {[%clk
0:04:27.2]} 14... Na5 {[%clk 0:03:41.9]} 15. dxe6 {[%clk 0:04:23]} 15... dxe6
{[%clk 0:03:40.5]} 16. Bd3 {[%clk 0:04:16.1]} 16... Nc4 {[%clk 0:03:39]} 17. Qe2
{[%clk 0:04:04.5]} 17... Rac8 {[%clk 0:03:33]} 18. Nd2 {[%clk 0:03:54.8]} 18...
Nb2 {[%clk 0:03:17.4]} 19. e5 {[%clk 0:03:48.4]} 19... Rxc3 {[%clk 0:03:13.9]}
20. Qh5 {[%clk 0:03:42.9]} 20... Nxd3 {[%clk 0:03:09.1]} 21. cxd3 {[%clk
0:03:40.9]} 21... Rcxd3 {[%clk 0:03:06.3]} 22. Ne4 {[%clk 0:03:40.4]} 22... Bxe4
{[%clk 0:03:04]} 23. Rfe1 {[%clk 0:03:39]} 23... Bg6 {[%clk 0:03:02.2]} 24. Qg4
{[%clk 0:03:30.2]} 24... Qd4 {[%clk 0:03:00.8]} 25. Qxd4 {[%clk 0:03:28.3]}
25... R3xd4 {[%clk 0:03:00.7]} 26. Rec1 {[%clk 0:03:26.8]} 26... h6 {[%clk
0:02:56.9]} 27. h3 {[%clk 0:03:26.1]} 27... Nf5 {[%clk 0:02:52.3]} 28. g4 {[%clk
0:03:25]} 28... Nh4 {[%clk 0:02:51]} 0-1

[Event "Live Chess"]
[Site "Chess.com"]
[Date "2023.05.20"]
[Round "-"]
[White "xx_blindpuffin_xx"]
[Black "diana21strabt"]
[Result "1-0"]
[WhiteElo "2191"]
[BlackElo "1708"]
[TimeControl "300"]
[EndTime "11:09:38 PDT"]
[Termination "xx_blindpuffin_xx won by resignation"]

1. d4 {[%clk 0:04:57.9]} 1... Nf6 {[%clk 0:04:58.6]} 2. Bf4 {[%clk 0:04:55.1]}
2... d5 {[%clk 0:04:57.2]} 3. e3 {[%clk 0:04:54.6]} 3... e6 {[%clk 0:04:56.2]}
4. Nf3 {[%clk 0:04:53.7]} 4... c5 {[%clk 0:04:55.2]} 5. c3 {[%clk 0:04:52.7]}
5... Bd6 {[%clk 0:04:53.8]} 6. Bg3 {[%clk 0:04:50.9]} 6... Nc6 {[%clk
0:04:51.3]} 7. Nbd2 {[%clk 0:04:49.3]} 7... b6 {[%clk 0:04:47.6]} 8. Bb5 {[%clk
0:04:47.7]} 8... Bb7 {[%clk 0:04:46.4]} 9. Ne5 {[%clk 0:04:46.3]} 9... Qc7
{[%clk 0:04:43.1]} 10. O-O {[%clk 0:04:41.3]} 10... a6 {[%clk 0:04:41]} 11.
Bxc6+ {[%clk 0:04:40.7]} 11... Bxc6 {[%clk 0:04:39.8]} 12. f4 {[%clk 0:04:40.6]}
12... Bxe5 {[%clk 0:04:37.1]} 13. fxe5 {[%clk 0:04:39.5]} 13... Ne4 {[%clk
0:04:27]} 14. Nxe4 {[%clk 0:04:38.6]} 14... dxe4 {[%clk 0:04:26.1]} 15. Qg4
{[%clk 0:04:33.2]} 15... O-O {[%clk 0:04:15.1]} 16. Bh4 {[%clk 0:04:31.6]} 16...
Ra7 {[%clk 0:03:42.1]} 17. Bf6 {[%clk 0:04:29.4]} 17... g6 {[%clk 0:03:38.6]}
18. Qg5 {[%clk 0:04:28.4]} 1-0

[Event "Live Chess"]
[Site "Chess.com"]
[Date "2023.05.20"]
[Round "-"]
[White "NatashaRegan"]
[Black "ProfPoisson"]
[Result "1-0"]
[WhiteElo "1873"]
[BlackElo "1060"]
[TimeControl "300"]
[EndTime "11:09:39 PDT"]
[Termination "NatashaRegan won by checkmate"]

1. e4 {[%clk 0:04:57.4]} 1... e5 {[%clk 0:04:56.8]} 2. f4 {[%clk 0:04:55.8]}
2... d5 {[%clk 0:04:52.9]} 3. exd5 {[%clk 0:04:53.1]} 3... c6 {[%clk 0:04:51.4]}
4. dxc6 {[%clk 0:04:49.4]} 4... Nxc6 {[%clk 0:04:49.9]} 5. Nc3 {[%clk
0:04:48.4]} 5... Be6 {[%clk 0:04:44.6]} 6. Nf3 {[%clk 0:04:45]} 6... Bc5 {[%clk
0:04:40.1]} 7. fxe5 {[%clk 0:04:39.4]} 7... Nxe5 {[%clk 0:04:32.8]} 8. Qe2
{[%clk 0:04:33]} 8... Nxf3+ {[%clk 0:04:28.3]} 9. Qxf3 {[%clk 0:04:27.9]} 9...
Qe7 {[%clk 0:04:21.4]} 10. Be2 {[%clk 0:04:22.5]} 10... Nf6 {[%clk 0:04:13.9]}
11. d3 {[%clk 0:04:19.6]} 11... O-O {[%clk 0:04:11.2]} 12. Bg5 {[%clk
0:04:16.4]} 12... Bd4 {[%clk 0:03:55.7]} 13. O-O-O {[%clk 0:03:44.4]} 13... Bxc3
{[%clk 0:03:36.8]} 14. bxc3 {[%clk 0:03:42.5]} 14... Qa3+ {[%clk 0:03:31.3]} 15.
Kd2 {[%clk 0:03:41.4]} 15... Qxa2 {[%clk 0:03:18.3]} 16. Bxf6 {[%clk 0:03:38.5]}
16... gxf6 {[%clk 0:03:13.8]} 17. Qxf6 {[%clk 0:03:37.4]} 17... Qd5 {[%clk
0:02:57.6]} 18. Bf3 {[%clk 0:03:32.9]} 18... Qd8 {[%clk 0:02:50.3]} 19. Qh6
{[%clk 0:03:28.6]} 19... Kh8 {[%clk 0:02:40.5]} 20. Be4 {[%clk 0:03:25.9]} 20...
f5 {[%clk 0:02:29]} 21. Bxb7 {[%clk 0:03:23.3]} 21... Rb8 {[%clk 0:01:59]} 22.
Qxe6 {[%clk 0:03:13.2]} 22... Qg5+ {[%clk 0:01:54.2]} 23. Qe3 {[%clk 0:03:08.1]}
23... f4 {[%clk 0:01:45.8]} 24. Qf3 {[%clk 0:03:03.5]} 24... Rf7 {[%clk
0:01:40.4]} 25. Bd5 {[%clk 0:02:59.9]} 25... Re7 {[%clk 0:01:35.5]} 26. Rde1
{[%clk 0:02:53.7]} 26... Rbe8 {[%clk 0:01:33.7]} 27. Rxe7 {[%clk 0:02:50.2]}
27... Rxe7 {[%clk 0:01:31.7]} 28. Re1 {[%clk 0:02:48.8]} 28... Rxe1 {[%clk
0:01:27.2]} 29. Kxe1 {[%clk 0:02:46.5]} 29... Qe5+ {[%clk 0:01:20.2]} 30. Qe4
{[%clk 0:02:44]} 30... Qxc3+ {[%clk 0:01:17]} 31. Kd1 {[%clk 0:02:39.7]} 31...
Qa1+ {[%clk 0:01:13.2]} 32. Kd2 {[%clk 0:02:35.6]} 32... Qa5+ {[%clk 0:01:07.7]}
33. Ke2 {[%clk 0:02:33.8]} 33... Qd8 {[%clk 0:00:42.4]} 34. Qe5+ {[%clk
0:02:31.3]} 34... Qf6 {[%clk 0:00:38]} 35. Qxf6# {[%clk 0:02:29.3]} 1-0

[Event "Live Chess"]
[Site "Chess.com"]
[Date "2023.05.20"]
[Round "-"]
[White "LGC4YOU"]
[Black "LiamBellwood"]
[Result "0-1"]
[WhiteElo "1178"]
[BlackElo "2079"]
[TimeControl "300"]
[EndTime "11:09:46 PDT"]
[Termination "LiamBellwood won by checkmate"]

1. d4 {[%clk 0:04:57.8]} 1... e6 {[%clk 0:04:59.5]} 2. Nf3 {[%clk 0:04:56.2]}
2... f5 {[%clk 0:04:58.8]} 3. Bf4 {[%clk 0:04:54.5]} 3... Nf6 {[%clk 0:04:58.4]}
4. e3 {[%clk 0:04:50.7]} 4... b6 {[%clk 0:04:57.2]} 5. c4 {[%clk 0:04:49.5]}
5... Bb7 {[%clk 0:04:52.5]} 6. Nc3 {[%clk 0:04:47.4]} 6... Bb4 {[%clk 0:04:51]}
7. a3 {[%clk 0:04:45.5]} 7... Bxc3+ {[%clk 0:04:50.2]} 8. bxc3 {[%clk
0:04:44.6]} 8... Ne4 {[%clk 0:04:50.1]} 9. Qc2 {[%clk 0:04:29.7]} 9... O-O
{[%clk 0:04:48.3]} 10. Nd2 {[%clk 0:04:20.7]} 10... d6 {[%clk 0:04:36.4]} 11.
Nxe4 {[%clk 0:04:14.2]} 11... Bxe4 {[%clk 0:04:36]} 12. Qd2 {[%clk 0:04:12.6]}
12... a5 {[%clk 0:04:24.3]} 13. f3 {[%clk 0:04:11.6]} 13... Bb7 {[%clk
0:04:23.3]} 14. c5 {[%clk 0:04:04.8]} 14... bxc5 {[%clk 0:03:50.5]} 15. Bd3
{[%clk 0:04:01.9]} 15... Ba6 {[%clk 0:03:44.7]} 16. O-O {[%clk 0:03:59.4]} 16...
Bxd3 {[%clk 0:03:43.4]} 17. Qxd3 {[%clk 0:03:58.4]} 17... cxd4 {[%clk
0:03:42.5]} 18. cxd4 {[%clk 0:03:57.2]} 18... Nd7 {[%clk 0:03:38.3]} 19. Rfc1
{[%clk 0:03:52.8]} 19... Nb6 {[%clk 0:03:13.9]} 20. e4 {[%clk 0:03:45.7]} 20...
fxe4 {[%clk 0:03:10.7]} 21. Qxe4 {[%clk 0:03:44.8]} 21... Qf6 {[%clk 0:03:07.5]}
22. Bg3 {[%clk 0:03:34.5]} 22... Nd5 {[%clk 0:03:07]} 23. Rab1 {[%clk
0:03:20.4]} 23... Rab8 {[%clk 0:02:59.8]} 24. Kf2 {[%clk 0:03:04.2]} 24... Rxb1
{[%clk 0:02:53.5]} 25. Rxb1 {[%clk 0:03:03.1]} 25... Nc3 {[%clk 0:02:52.9]} 26.
Qd3 {[%clk 0:02:46.6]} 26... Nxb1 {[%clk 0:02:51.8]} 27. Qxb1 {[%clk 0:02:42.1]}
27... Qxd4+ {[%clk 0:02:51.1]} 28. Kf1 {[%clk 0:02:37.3]} 28... Qc4+ {[%clk
0:02:35.4]} 29. Kg1 {[%clk 0:02:34]} 29... Rf5 {[%clk 0:02:19.3]} 30. Kh1 {[%clk
0:02:30.3]} 30... Rb5 {[%clk 0:02:14.2]} 31. Qa1 {[%clk 0:02:11.1]} 31... Qc2
{[%clk 0:02:11.6]} 32. Qf1 {[%clk 0:00:42.1]} 32... Rb1 {[%clk 0:02:11.5]} 33.
Be1 {[%clk 0:00:40.7]} 33... Qd1 {[%clk 0:02:05.7]} 34. h3 {[%clk 0:00:37.3]}
34... Qxe1 {[%clk 0:02:04.9]} 35. Qxe1 {[%clk 0:00:34.8]} 35... Rxe1+ {[%clk
0:02:04.8]} 36. Kh2 {[%clk 0:00:33.9]} 36... Ra1 {[%clk 0:02:04.7]} 37. Kg3
{[%clk 0:00:33]} 37... Rxa3 {[%clk 0:02:03.8]} 38. h4 {[%clk 0:00:31.9]} 38...
Rb3 {[%clk 0:02:03.7]} 39. Kg4 {[%clk 0:00:30.9]} 39... a4 {[%clk 0:02:03.6]}
40. f4 {[%clk 0:00:29.9]} 40... a3 {[%clk 0:02:03.5]} 41. f5 {[%clk 0:00:29.4]}
41... a2 {[%clk 0:02:03.4]} 42. fxe6 {[%clk 0:00:28.6]} 42... a1=Q {[%clk
0:02:02.8]} 43. e7 {[%clk 0:00:27.5]} 43... Qe1 {[%clk 0:02:00.4]} 44. h5 {[%clk
0:00:21.6]} 44... Qe4+ {[%clk 0:01:57.5]} 45. Kg5 {[%clk 0:00:19.8]} 45... Rb5#
{[%clk 0:01:56.8]} 0-1

[Event "Live Chess"]
[Site "Chess.com"]
[Date "2023.05.20"]
[Round "-"]
[White "Horseymobile"]
[Black "raminguy"]
[Result "0-1"]
[WhiteElo "1235"]
[BlackElo "1977"]
[TimeControl "300"]
[EndTime "11:09:48 PDT"]
[Termination "raminguy won by resignation"]

1. d4 {[%clk 0:04:59.1]} 1... d5 {[%clk 0:04:58.4]} 2. c4 {[%clk 0:04:57.8]}
2... e6 {[%clk 0:04:56.4]} 3. Nc3 {[%clk 0:04:55.3]} 3... a6 {[%clk 0:04:55.7]}
4. Nf3 {[%clk 0:04:54]} 4... dxc4 {[%clk 0:04:55]} 5. e4 {[%clk 0:04:52.7]} 5...
b5 {[%clk 0:04:53.7]} 6. a3 {[%clk 0:04:49.5]} 6... Bb7 {[%clk 0:04:53]} 7. Be2
{[%clk 0:04:43.8]} 7... Nf6 {[%clk 0:04:51.2]} 8. Bg5 {[%clk 0:04:40.7]} 8...
Be7 {[%clk 0:04:49.8]} 9. O-O {[%clk 0:04:38.1]} 9... Nxe4 {[%clk 0:04:48.4]}
10. Bxe7 {[%clk 0:04:31.5]} 10... Qxe7 {[%clk 0:04:48.3]} 11. Nxe4 {[%clk
0:04:17.3]} 11... Bxe4 {[%clk 0:04:46.5]} 12. Ne5 {[%clk 0:04:14.7]} 12... O-O
{[%clk 0:04:43.6]} 13. Bf3 {[%clk 0:04:05.7]} 13... Bxf3 {[%clk 0:04:40.8]} 14.
Qxf3 {[%clk 0:04:05.6]} 14... Nd7 {[%clk 0:04:39.7]} 15. Rfd1 {[%clk 0:04:00.4]}
15... Nxe5 {[%clk 0:04:38]} 16. dxe5 {[%clk 0:03:59.6]} 16... Qc5 {[%clk
0:04:37]} 17. Qe4 {[%clk 0:03:53.5]} 17... Rad8 {[%clk 0:04:34.5]} 0-1

[Event "Live Chess"]
[Site "Chess.com"]
[Date "2023.05.20"]
[Round "-"]
[White "JoeyCage"]
[Black "KuriyamaMiraiUA"]
[Result "1-0"]
[WhiteElo "2305"]
[BlackElo "684"]
[TimeControl "300"]
[EndTime "11:09:50 PDT"]
[Termination "JoeyCage won by checkmate"]

1. e4 {[%clk 0:04:55.2]} 1... c6 {[%clk 0:04:58.5]} 2. d4 {[%clk 0:04:54]} 2...
d5 {[%clk 0:04:57.3]} 3. e5 {[%clk 0:04:53.9]} 3... Bf5 {[%clk 0:04:56.2]} 4. c4
{[%clk 0:04:50.8]} 4... Nd7 {[%clk 0:04:40.5]} 5. Nc3 {[%clk 0:04:47.1]} 5... e6
{[%clk 0:04:36]} 6. Be3 {[%clk 0:04:45.3]} 6... h6 {[%clk 0:04:29.6]} 7. c5
{[%clk 0:04:41.6]} 7... b6 {[%clk 0:04:24.1]} 8. b4 {[%clk 0:04:40.2]} 8... b5
{[%clk 0:04:21]} 9. a4 {[%clk 0:04:38.2]} 9... a6 {[%clk 0:04:12.3]} 10. Nge2
{[%clk 0:04:34.5]} 10... Be7 {[%clk 0:04:03.8]} 11. Ng3 {[%clk 0:04:33.2]} 11...
Bh7 {[%clk 0:03:46.8]} 12. f4 {[%clk 0:04:31.8]} 12... g5 {[%clk 0:03:39.1]} 13.
Bd3 {[%clk 0:04:27]} 13... Bxd3 {[%clk 0:03:28.4]} 14. Qxd3 {[%clk 0:04:25.4]}
14... f6 {[%clk 0:03:27.1]} 15. O-O {[%clk 0:04:18.1]} 15... f5 {[%clk
0:03:10.8]} 16. Nxf5 {[%clk 0:04:16.7]} 16... exf5 {[%clk 0:03:09.4]} 17. Qxf5
{[%clk 0:04:15.4]} 17... Qc7 {[%clk 0:02:38.6]} 18. fxg5 {[%clk 0:04:10.3]}
18... hxg5 {[%clk 0:02:35.4]} 19. Qg6+ {[%clk 0:04:07.1]} 19... Kd8 {[%clk
0:02:22.7]} 20. axb5 {[%clk 0:04:04.3]} 20... cxb5 {[%clk 0:02:17.9]} 21. Qg7
{[%clk 0:03:49.2]} 21... Bf8 {[%clk 0:01:27.6]} 22. Qxh8 {[%clk 0:03:31.8]}
22... Qc6 {[%clk 0:00:53.9]} 23. Qxg8 {[%clk 0:03:26.6]} 23... Kc7 {[%clk
0:00:49.2]} 24. Nxd5+ {[%clk 0:03:24.3]} 24... Qxd5 {[%clk 0:00:43.5]} 25. Qxd5
{[%clk 0:03:22.4]} 25... Rd8 {[%clk 0:00:18.7]} 26. Rxa6 {[%clk 0:03:18.7]}
26... Nb8 {[%clk 0:00:12.9]} 27. Ra7+ {[%clk 0:03:16.3]} 27... Kc8 {[%clk
0:00:07.8]} 28. Qb7# {[%clk 0:03:14.3]} 1-0

[Event "Live Chess"]
[Site "Chess.com"]
[Date "2023.05.20"]
[Round "-"]
[White "toog"]
[Black "mightysmasher"]
[Result "0-1"]
[WhiteElo "2627"]
[BlackElo "2120"]
[TimeControl "300"]
[EndTime "11:09:56 PDT"]
[Termination "mightysmasher won by resignation"]

1. e4 {[%clk 0:04:54.2]} 1... e6 {[%clk 0:04:58.1]} 2. Nf3 {[%clk 0:04:50]} 2...
d5 {[%clk 0:04:56.8]} 3. exd5 {[%clk 0:04:49.3]} 3... exd5 {[%clk 0:04:55.6]} 4.
d4 {[%clk 0:04:48.1]} 4... Nf6 {[%clk 0:04:54.5]} 5. Bd3 {[%clk 0:04:46.8]} 5...
Bd6 {[%clk 0:04:53.5]} 6. O-O {[%clk 0:04:45.8]} 6... O-O {[%clk 0:04:53]} 7. h3
{[%clk 0:04:44.6]} 7... h6 {[%clk 0:04:49.3]} 8. Re1 {[%clk 0:04:42.7]} 8... Be6
{[%clk 0:04:47]} 9. Nbd2 {[%clk 0:04:40.9]} 9... Nbd7 {[%clk 0:04:46.3]} 10. Ne5
{[%clk 0:04:39.4]} 10... c5 {[%clk 0:04:44.1]} 11. c3 {[%clk 0:04:36.4]} 11...
Qb6 {[%clk 0:04:41.1]} 12. Ndf3 {[%clk 0:04:34.8]} 12... cxd4 {[%clk 0:04:39.3]}
13. cxd4 {[%clk 0:04:34.7]} 13... Ne4 {[%clk 0:04:37.9]} 14. Bxe4 {[%clk
0:04:29.7]} 14... dxe4 {[%clk 0:04:35.6]} 15. Rxe4 {[%clk 0:04:29.6]} 15... Nxe5
{[%clk 0:04:34.8]} 16. dxe5 {[%clk 0:04:28.1]} 16... Bc5 {[%clk 0:04:32.7]} 17.
Be3 {[%clk 0:04:26.6]} 17... Bxe3 {[%clk 0:04:30.2]} 18. Rxe3 {[%clk 0:04:26.5]}
18... Qxb2 {[%clk 0:04:28.1]} 19. Qd4 {[%clk 0:04:24.9]} 19... Qb5 {[%clk
0:04:23.4]} 20. a4 {[%clk 0:04:19.2]} 20... Qa5 {[%clk 0:04:20.4]} 21. Rb1
{[%clk 0:04:16]} 21... Rfd8 {[%clk 0:04:17.7]} 22. Qc3 {[%clk 0:04:10.2]} 22...
Qxa4 {[%clk 0:04:15.1]} 23. Rxb7 {[%clk 0:04:07.6]} 23... a5 {[%clk 0:04:11.7]}
24. Rb1 {[%clk 0:04:00]} 24... Rd1+ {[%clk 0:04:07.6]} 25. Rxd1 {[%clk
0:03:59.1]} 25... Qxd1+ {[%clk 0:04:06.6]} 26. Re1 {[%clk 0:03:58.7]} 26... Qd5
{[%clk 0:04:05.4]} 27. Ra1 {[%clk 0:03:56.5]} 27... a4 {[%clk 0:04:04.1]} 28.
Ra3 {[%clk 0:03:53.3]} 28... Qd1+ {[%clk 0:03:57.2]} 29. Qe1 {[%clk 0:03:46.9]}
29... Qd7 {[%clk 0:03:51.5]} 30. Qa1 {[%clk 0:03:40.6]} 30... Qa7 {[%clk
0:03:38.7]} 31. Nd4 {[%clk 0:03:38]} 31... Qc5 {[%clk 0:03:30.5]} 32. Nxe6
{[%clk 0:03:29.7]} 32... fxe6 {[%clk 0:03:28.3]} 33. Rxa4 {[%clk 0:03:23.8]}
33... Rxa4 {[%clk 0:03:24.9]} 34. Qxa4 {[%clk 0:03:23.7]} 34... Qxe5 {[%clk
0:03:23.9]} 35. Qc2 {[%clk 0:03:21.8]} 35... Qf5 {[%clk 0:03:18.5]} 36. Qc4
{[%clk 0:02:59]} 36... Qb1+ {[%clk 0:03:15.5]} 37. Kh2 {[%clk 0:02:57.2]} 37...
Qb8+ {[%clk 0:03:14.6]} 38. g3 {[%clk 0:02:55.9]} 38... Qe5 {[%clk 0:03:13.7]}
39. Qd3 {[%clk 0:02:53]} 39... Kf7 {[%clk 0:03:11.8]} 40. Qf3+ {[%clk
0:02:51.5]} 40... Qf5 {[%clk 0:03:10.9]} 41. Qe3 {[%clk 0:02:50.7]} 41... Kg8
{[%clk 0:03:07.7]} 42. h4 {[%clk 0:02:49.6]} 42... Kf7 {[%clk 0:03:06.3]} 43.
Qd4 {[%clk 0:02:48.1]} 43... Kg8 {[%clk 0:03:04.8]} 44. Kg2 {[%clk 0:02:47.3]}
44... Qd5+ {[%clk 0:03:02.2]} 45. Qxd5 {[%clk 0:02:46.1]} 45... exd5 {[%clk
0:03:01]} 46. Kf3 {[%clk 0:02:46]} 46... Kf7 {[%clk 0:03:00.4]} 47. Ke3 {[%clk
0:02:45.4]} 47... Kf6 {[%clk 0:02:57.9]} 48. Kd4 {[%clk 0:02:42]} 48... Ke6
{[%clk 0:02:56.5]} 49. g4 {[%clk 0:02:40.1]} 49... g5 {[%clk 0:02:52.6]} 50.
hxg5 {[%clk 0:02:09.2]} 50... hxg5 {[%clk 0:02:49.9]} 51. Kd3 {[%clk 0:01:41.2]}
51... Ke5 {[%clk 0:02:47.3]} 52. Ke3 {[%clk 0:01:40.3]} 52... d4+ {[%clk
0:02:45.9]} 53. Kd3 {[%clk 0:01:29]} 53... Kd5 {[%clk 0:02:44]} 54. Kd2 {[%clk
0:01:28.4]} 54... Ke4 {[%clk 0:02:42.6]} 55. Ke2 {[%clk 0:01:27.8]} 55... Kf4
{[%clk 0:02:40.6]} 56. Kd3 {[%clk 0:01:18.2]} 56... Ke5 {[%clk 0:02:34.5]} 57.
Ke2 {[%clk 0:01:14.5]} 57... Ke4 {[%clk 0:02:26.1]} 58. Kd2 {[%clk 0:01:10.1]}
58... Kf3 {[%clk 0:02:19]} 59. Kd3 {[%clk 0:01:09.4]} 59... Kxf2 {[%clk
0:02:17.3]} 60. Kxd4 {[%clk 0:01:08.4]} 60... Kf3 {[%clk 0:02:16.5]} 61. Kd3
{[%clk 0:01:03.6]} 61... Kxg4 {[%clk 0:02:15.3]} 62. Ke2 {[%clk 0:01:03.5]}
62... Kg3 {[%clk 0:02:14.6]} 63. Kf1 {[%clk 0:01:02.5]} 63... Kh2 {[%clk
0:02:13.6]} 64. Kf2 {[%clk 0:01:01]} 64... g4 {[%clk 0:02:12.9]} 0-1